Cogmind - Beta 14 @@@ ROGUE MODE // 2024.09.09 @ 09:48:38 Player: THN-L0C Result: Self-destructed Performance ------------- Evolutions (2) 1000 Regions Visited (5) 1000 Robots Destroyed (22) 110 Value Destroyed (504) 504 Prototype IDs (24) 480 Alien Tech Used (0) 0 Bonus (-1211) -1211 TOTAL SCORE: 1883 Bonus ------- Aligned with FarCom 300 Friendly Fire -1511 Cogmind --------- Core Integrity 427/550 Matter 326/700 Energy 240/240 System Corruption 0% Temperature Cool (0) Movement Treading (240) Ox1 Location -8/Materials Parts ------- > --- POWER (1) -------- Nuclear Core > --- PROPULSION (2) --- Light Treads Light Treads > --- UTILITY (6) ------ Improved Heat Sink Large Storage Unit High-capacity Matter Pod High-capacity Matter Pod Power Shielding > --- WEAPON (2) ------- Heavy Assault Rifle Assault Cannon > --- INVENTORY (15) --- Improved Ion Engine Nuclear Core High-capacity Storage Unit Huge Storage Unit High-capacity Matter Pod (0) YI-UF0's Bottomless Matter Pit (0) Improved Terrain Scanner Pulse Rifle Pulse Rifle Shotgun AWS/Gauss Grenade Launcher Rocket Launcher Plasma Cutter Peak State ------------ > --- POWER ------------ Nuclear Core > --- PROPULSION ------- Light Treads Light Treads > --- UTILITY ---------- Improved Heat Sink Large Storage Unit High-capacity Matter Pod High-capacity Matter Pod Seismic Detector Power Shielding > --- WEAPON ----------- Assault Rifle Minigun > --- INVENTORY -------- Nuclear Core High-capacity Storage Unit Huge Storage Unit High-capacity Matter Pod YI-UF0's Bottomless Matter Pit Improved Terrain Scanner Pulse Rifle Pulse Rifle Shotgun AWS/Gauss Flak Cannon Grenade Launcher Rocket Launcher Plasma Cutter [Rating: 22] Favorites ----------- Power Light Ion Engine Engine Light Ion Engine Power Core Nuclear Core Propulsion Light Treads Treads Light Treads Utility Large Storage Unit Device Seismic Detector Storage Large Storage Unit Protection Power Shielding Weapon Assault Rifle Ballistic Gun Assault Rifle Ballistic Cannon Flak Cannon Build | -11 -10 -10 -10 -9 -8 ------- Run | Yrd Mat Min Exi Min Mat Slots Evolved 4 | . . . . . 4 Power . | . . . . . . Propulsion . | . . . . . . Utility 4 | . . . . . 4 Weapon . | . . . . . . Parts Attached 29 | 8 4 . . 2 15 Power 3 | 1 1 . . . 1 Engine 2 | 1 1 . . . . Core 1 | . . . . . 1 Reactor . | . . . . . . Propulsion 7 | 2 1 . . . 4 Treads 7 | 2 1 . . . 4 Leg . | . . . . . . Wheel . | . . . . . . Hover . | . . . . . . Flight . | . . . . . . Utility 10 | 2 1 . . 2 5 Device 4 | 1 . . . 1 2 Storage 5 | 1 1 . . 1 2 Processor . | . . . . . . Hackware . | . . . . . . Protection 1 | . . . . . 1 Artifact . | . . . . . . Weapon 9 | 3 1 . . . 5 Energy Gun . | . . . . . . Energy Cannon . | . . . . . . Ballistic Gun 6 | 3 1 . . . 2 Ballistic Cannon 3 | . . . . . 3 Launcher . | . . . . . . Special Weapon . | . . . . . . Impact Weapon . | . . . . . . Slashing Weapon . | . . . . . . Piercing Weapon . | . . . . . . Special Melee Weapon . | . . . . . . Unidentified Prototypes 1 | . . . . 1 . Parts Lost 5 | . . . . . 5 Power . | . . . . . . Propulsion 2 | . . . . . 2 Utility 1 | . . . . . 1 Weapon 2 | . . . . . 2 Highest Loss Streak 5 | . . . . . 5 To Critical Strikes . | . . . . . . Average Slot Usage (%) 97 | . 100 100 100 100 85 Engine 11 | . 14 14 14 14 1 Core 1 | . . . . . 7 Treads 25 | . 28 28 28 28 14 Device 13 | . 14 14 14 14 13 Storage 15 | . 14 14 14 14 22 Protection 1 | . . . . . 9 Ballistic Gun 25 | . 28 28 28 28 12 Peak Build Rating 22 | 7 8 8 9 18 22 Average Rating 9 | 5 7 8 8 10 19 On Entrance 7 | . 7 8 8 9 11 Naked Turns . | . . . . . . Heaviest Build 46 | 13 28 28 28 28 46 Greatest Support 40 | 40 40 40 40 40 40 Greatest Overweight (x) 14 | 2 . . . . 14 Average Overweight (x) . | . . . . . . Largest Inventory Capacity 15 | 8 15 15 15 15 15 Average Capacity 14 | 7 14 15 15 15 15 Most Carried 15 | 2 8 9 11 15 15 Average Carried 9 | 1 6 8 9 13 14 Final Capacity 15 | 8 15 15 15 15 15 Final Carried 15 | 2 8 9 11 15 15 Class Distribution -------------------- 100% | Mutant Dominant Class ---------------- Mutant | -10/Materials Mutant | -10/Mines Mutant | -10/Exiles Mutant | -9/Mines Mutant | -8/Materials Resources | -11 -10 -10 -10 -9 -8 ----------- Run | Yrd Mat Min Exi Min Mat Matter Collected 1052 | 294 145 . . 440 173 Remotely . | . . . . . . Salvage Created 640 | 19 253 . . 104 264 Parts 46 | 5 22 . . 4 15 Haulers Intercepted . | . . . . . . Recyclers Shooed 3 | 1 . . . 2 . Parts Field Recycled . | . . . . . . Retrieved Matter . | . . . . . . Parts Self-Destructed . | . . . . . . Prevented . | . . . . . . Kills | -11 -10 -10 -10 -9 -8 ------- Run | Yrd Mat Min Exi Min Mat Combat Hostiles Destroyed 19 | . 11 . . . 8 Guns 14 | . 11 . . . 3 Cannons 5 | . . . . . 5 Classes Destroyed 6 | 1 3 . . . 2 Tunneler 1 | 1 . . . . . Watcher 1 | . 1 . . . . Swarmer 11 | . 9 . . . 2 Grunt 2 | . 2 . . . . Sentry 5 | . . . . . 5 Hunter 1 | . . . . . 1 Best Kill Streak 5 | 1 3 . . . 5 Combat Bots Only 5 | . 3 . . . 5 Max Kills in Single Turn 1 | 1 1 . . 1 1 Gunslinging . | . . . . . . Exploded . | . . . . . . Melee . | . . . . . . Uniques/NPCs Destroyed 1 | . . . . 1 . YI-UF0 (-9/Mines) Combat | -11 -10 -10 -10 -9 -8 -------- Run | Yrd Mat Min Exi Min Mat Hostile Shots Fired 147 | . 46 . . . 101 Missed 45 | . 11 . . . 34 Damage Taken 1222 | . 359 . . . 863 Core 175 | . 52 . . . 123 Absorbed by Shields . | . . . . . . Redirected to Shielding 17 | . . . . . 17 Core Remaining (%) 89 | 100 . . . 79 . Volleys Fired 88 | 4 28 . . 23 33 Largest 2 | 2 2 . . 2 2 Hottest 69 | 40 40 . . 40 69 Shots Fired 167 | 8 56 . . 46 57 Gun 146 | 8 56 . . 46 36 Cannon 21 | . . . . . 21 Launcher . | . . . . . . Special . | . . . . . . Kinetic 167 | 8 56 . . 46 57 Thermal . | . . . . . . Explosive . | . . . . . . Electromagnetic . | . . . . . . Robot Hit Streak 13 | 2 8 . . 8 13 Robot Miss Streak 7 | 2 7 . . 2 4 Penetration Max . | . . . . . . Secondary Targets 4 | . 2 . . . 2 Max Gunslinging Chain 1 | . 1 . . . 1 Shots Hit Robots 111 | 4 30 . . 33 44 Core Hits 40 | 2 16 . . 5 17 Critical Kills . | . . . . . . Critical Parts Destroyed . | . . . . . . Critical Strikes . | . . . . . . Melee Attacks . | . . . . . . Impact . | . . . . . . Slashing . | . . . . . . Piercing . | . . . . . . Sneak Attacks . | . . . . . . Combat Hostiles . | . . . . . . Follow-up Attacks . | . . . . . . Damage Inflicted 1586 | 48 391 . . 400 747 Guns 1231 | 48 382 . . 400 401 Cannons 346 | . . . . . 346 Explosions . | . . . . . . Melee . | . . . . . . Ramming 9 | . 9 . . . . Kinetic 1577 | 48 382 . . 400 747 Thermal . | . . . . . . Explosive . | . . . . . . Electromagnetic . | . . . . . . Impact . | . . . . . . Slashing . | . . . . . . Piercing . | . . . . . . Highest Corruption . | . . . . . . Average Corruption . | . . . . . . Corruption Purged . | . . . . . . Corruption Blocked . | . . . . . . Overload Shots . | . . . . . . Overflow Damage . | . . . . . . Projectiles . | . . . . . . Explosions . | . . . . . . Melee . | . . . . . . Knockbacks . | . . . . . . Impact . | . . . . . . Kinetic . | . . . . . . Secondary . | . . . . . . Self-Inflicted Damage . | . . . . . . Shots . | . . . . . . Rammed 1 | . 1 . . . . Targets Rammed 1 | . 1 . . . . Kicked . | . . . . . . Crushed . | . . . . . . Highest Temperature 20 | . 20 . . . 5 Average Temperature 7 | . 8 . . . 3 Received Heat Transfer 264 | . 84 . . . 180 Siege Activations . | . . . . . . Robots Corrupted . | . . . . . . Combat Hostiles . | . . . . . . Parts Fried . | . . . . . . Impact Corruptions . | . . . . . . Robots Melted . | . . . . . . Combat Hostiles . | . . . . . . Parts Melted . | . . . . . . Heat Transferred . | . . . . . . Parts Sabotaged . | . . . . . . Parts Stolen . | . . . . . . Parts Stripped . | . . . . . . Power Chain Reactions . | . . . . . . Alert | -11 -10 -10 -10 -9 -8 ------- Run | Yrd Mat Min Exi Min Mat Peak Influence 232 | 5 181 62 . . 232 Initial 12 | . 3 12 . . . Average 60 | 2 88 24 . . 59 Maximum Alert Level 1 | . . . . . 1 Low Security (%) 99 | 100 100 100 . 100 96 Level 1 . | . . . . . 3 Level 2 . | . . . . . . Level 3 . | . . . . . . Level 4 . | . . . . . . Level 5 . | . . . . . . High Security . | . . . . . . Max Security . | . . . . . . Squads Dispatched 5 | . 1 . . . 4 Investigation 1 | . 1 . . . . Extermination . | . . . . . . Reinforcement . | . . . . . . Assault . | . . . . . . Garrison 4 | . . . . . 4 Intercept . | . . . . . . Searches Triggered . | . . . . . . Construction Impeded . | . . . . . . Haulers Reinforced . | . . . . . . Active Scanning Responses . | . . . . . . Cargo Convoy Interrupts . | . . . . . . Stealth | -11 -10 -10 -10 -9 -8 --------- Run | Yrd Mat Min Exi Min Mat Distress Signals . | . . . . . . Communications Jammed . | . . . . . . Distress Signals . | . . . . . . Times Spotted 30 | . 18 . . . 12 Peak Tracking Total 5 | . 4 . . . 5 Tactical Retreats . | . . . . . . Traps | -11 -10 -10 -10 -9 -8 ------- Run | Yrd Mat Min Exi Min Mat Traps Triggered 6 | . 4 . . . 2 Indirectly . | . . . . . . Trap Hack Attempts . | . . . . . . Triggered . | . . . . . . Disarmed . | . . . . . . Reprogrammed . | . . . . . . Reused . | . . . . . . Traps Extracted . | . . . . . . Installed . | . . . . . . Triggered . | . . . . . . Machines | -11 -10 -10 -10 -9 -8 ---------- Run | Yrd Mat Min Exi Min Mat Machines Disabled 1 | . . . . . 1 Max in Single Turn 1 | . . . . . 1 Machines Repaired . | . . . . . . Machines Dismantled . | . . . . . . Machines Sabotaged . | . . . . . . Overloaded Fab Kills . | . . . . . . Hacking | -11 -10 -10 -10 -9 -8 --------- Run | Yrd Mat Min Exi Min Mat Machines Accessed 11 | . 8 . 1 . 2 Terminals 7 | . 7 . . . . Fabricators . | . . . . . . Repair Stations . | . . . . . . Recycling Units 1 | . 1 . . . . Scanalyzers 1 | . . . . . 1 Garrison Access 1 | . . . . . 1 Total Hacks 24 | . 18 . 1 . 5 Successful 14 | . 11 . 1 . 2 Failed 10 | . 7 . . . 3 Catastrophic 1 | . . . . . 1 Database Lockouts . | . . . . . . Manual 18 | . 17 . 1 . . Terminals 17 | . 17 . . . . Fabricators . | . . . . . . Repair Stations . | . . . . . . Recycling Units 1 | . 1 . . . . Scanalyzers 2 | . . . . . 2 Garrison Access 3 | . . . . . 3 Terminal Hacks 2 | . 1 . 1 . . Recall Investigation 1 | . 1 . . . . Derelict Proto ID Bank 1 | . . . 1 . . Fabricator Hacks . | . . . . . . Repair Station Hacks . | . . . . . . Recycling Unit Hacks 1 | . 1 . . . . Retrieve Components 1 | . 1 . . . . Scanalyzer 2 | . . . . . 2 Insert Component 1 | . . . . . 1 Analyze 1 | . . . . . 1 Garrison Access Hacks . | . . . . . . Unauthorized Hacks 9 | . 9 . . . . Terminals 9 | . 9 . . . . Botnet 3 | . 3 . . . . Operators 1 | . 1 . . . . Skim 5 | . 5 . . . . Fabricators . | . . . . . . Repair Stations . | . . . . . . Recycling Units . | . . . . . . Scanalyzers . | . . . . . . Garrison Access . | . . . . . . Data Cores Recovered . | . . . . . . Used . | . . . . . . Hacking Detections 10 | . 8 . . . 2 Full Trace Events 2 | . 1 . . . 1 Feedback Events . | . . . . . . Feedback Blocked . | . . . . . . Robot Schematics Acquired . | . . . . . . Robots Built . | . . . . . . Authchips . | . . . . . . Time . | . . . . . . Total Robot Build Rating . | . . . . . . Part Schematics Acquired 1 | . . . . . 1 Parts Built . | . . . . . . Authchips . | . . . . . . Time . | . . . . . . Total Part Build Rating . | . . . . . . Parts Repaired . | . . . . . . Time . | . . . . . . Parts Recycled . | . . . . . . Recycled Matter . | . . . . . . Retrieved Matter . | . . . . . . Retrieved Components 4 | . 4 . . . . Parts Scanalyzed 1 | . . . . . 1 Part Schematics Acquired 1 | . . . . . 1 Parts Damaged . | . . . . . . Bothacking | -11 -10 -10 -10 -9 -8 ------------ Run | Yrd Mat Min Exi Min Mat Used RIF Installer . | . . . . . . Robots Hacked . | . . . . . . Non-combat . | . . . . . . Combat . | . . . . . . Robot Hacks Applied . | . . . . . . Relay Couplers Released . | . . . . . . Fabnet Peak Effective % . | . . . . . . Robots Rewired . | . . . . . . Allies Hacked . | . . . . . . Hacks Repelled . | . . . . . . Allies | -11 -10 -10 -10 -9 -8 -------- Run | Yrd Mat Min Exi Min Mat Total Allies 1 | . . 1 . . . Largest Group 1 | . . 1 . . . Highest-Rated Group 31 | . . 31 . . . Highest-Rated Ally 31 | . . 31 . . . Total Orders . | . . . . . . Ally Attacks 9 | . . 9 . . . Total Damage 127 | . . 127 . . . Kills 2 | . . 2 . . . Allies Corrupted . | . . . . . . Allies Melted . | . . . . . . Intel | -11 -10 -10 -10 -9 -8 ------- Run | Yrd Mat Min Exi Min Mat Robot Analysis Total . | . . . . . . Derelict Logs Recovered . | . . . . . . Drone Launches . | . . . . . . Drone Recoveries . | . . . . . . Exploration | -11 -10 -10 -10 -9 -8 ------------- Run | Yrd Mat Min Exi Min Mat Turns Passed 2251 | 83 1011 161 341 292 363 Spaces Moved 988 | 40 388 101 213 136 110 Core 9 | 6 . . . . 3 Treads 979 | 34 388 101 213 136 107 Legs . | . . . . . . Wheels . | . . . . . . Hover . | . . . . . . Flight . | . . . . . . Fastest Speed 50 | 50 160 160 160 160 160 Average Speed 166 | 146 160 160 160 160 224 Slowest Speed 750 | 160 160 160 160 160 750 Overloaded Moves . | . . . . . . Propulsion Burnouts . | . . . . . . Robots Hopped . | . . . . . . Cave-ins Triggered . | . . . . . . Exploration Rate (%) 32 | 4 69 14 60 33 13 Regions Visited 5 Branch Regions 3 Pre-discovered Areas . | . . . . . . Known Exits Taken 1 | . 1 . . . . Unknown Exits Taken 4 | 1 . 1 1 1 . Scrap Searched 3 | . . . . 3 . Spaces Dug . | . . . . . . Terrain Destroyed 1 | . . . . . 1 Melee . | . . . . . . Projectile 1 | . . . . . 1 AOE . | . . . . . . Terrain Rammed . | . . . . . . Walls Destroyed . | . . . . . . Machines Disabled . | . . . . . . Actions | -11 -10 -10 -10 -9 -8 --------- Run | Yrd Mat Min Exi Min Mat Total 1420 | 53 720 101 213 164 169 Wait 294 | 1 293 . . . . Move 983 | 39 387 100 212 135 110 Hop . | . . . . . . Pick Up 19 | 1 6 1 1 4 6 Fast Attach 18 | 7 3 . . . 8 Attach 4 | . . . . . 4 Detach . | . . . . . . Swap 7 | 1 1 . . 2 3 Drop 6 | . 1 . . . 5 Fire 88 | 4 28 . . 23 33 Melee . | . . . . . . Ram . | . . . . . . Kick . | . . . . . . Crush 1 | . 1 . . . . Escape Stasis . | . . . . . . Rewire . | . . . . . . Trap . | . . . . . . Miscellaneous . | . . . . . . Route ------- -11/Scrapyard -10/Materials (discovered 5 exits: *Mat x2 / *Min x2 / Sub) -10/Mines (discovered 2 exits: *Mat / *Exi) -10/Exiles -9/Mines -8/Materials History --------- Turn | Location | Event 7 | -11/Scrapyard | Discovered new exit (range 16) 84 | -11/Scrapyard | Entered Materials 240 | -10/Materials | Discovered new exit (range 3) 301 | -10/Materials | Build established: Mutant 585 | -10/Materials | Discovered new exit (range 7) 716 | -10/Materials | Learned location of 1 exit from Recycling 779 | -10/Materials | Identified exit to Materials 779 | -10/Materials | Identified exit to Mines 779 | -10/Materials | Identified exit to Subcaves 830 | -10/Materials | Learned Storage security intel 930 | -10/Materials | Learned 4 Recycling zone layouts 942 | -10/Materials | Learned location of 1 exit from Recycling 962 | -10/Materials | Learned location of 1 exit from Storage 992 | -10/Materials | Learned Storage emergency access door positions 1095 | -10/Materials | Entered Mines 1098 | -10/Mines | Received a Mining Laser from a helpful Derelict 1124 | -10/Mines | Deemed a non-threat by the Exiles lab entrance 1125 | -10/Mines | Discovered new exit (range 5) 1178 | -10/Mines | Discovered exit to Materials (range 8) 1256 | -10/Mines | Entered Exiles 1296 | -10/Exiles | Met 8R-AWN 1322 | -10/Exiles | Met EX-HEX 1365 | -10/Exiles | Met EX-BIN 1384 | -10/Exiles | Aligned with FarCom system 1386 | -10/Exiles | Given EX-Vault access code 1428 | -10/Exiles | Opened EX-Vault 1439 | -10/Exiles | Found AWS/Gauss 1475 | -10/Exiles | Warned to stay clear of 0b10 Research branches 1526 | -10/Exiles | Met EX-DEC 1582 | -10/Exiles | Discovered new exit (range 10) 1597 | -10/Exiles | Left Exiles lab with AWS/Gauss 1597 | -10/Exiles | Entered Mines 1632 | -9/Mines | Received a Rocket Launcher from a helpful Derelict 1679 | -9/Mines | YI-UF0 nonchalantly dropped a Grenade Launcher on the ground 1715 | -9/Mines | Found DCF Scrap (15 items) 1776 | -9/Mines | Murdered YI-UF0 1781 | -9/Mines | Found Prototype Storage 1781 | -9/Mines | Identified YI-UF0's Bottomless Matter Pit 1838 | -9/Mines | Discovered new exit (range 14) 1889 | -9/Mines | Entered Materials 1889 | -8/Materials | Evolved 4 slots: Utility x4 2139 | -8/Materials | Lost 5 parts (2n1u2w) 2222 | -8/Materials | Garrison activated, responded to threat 2252 | -8/Materials | Self-destructed Last Messages --------------- 02199_ Acquired Imp. Heat Sink. 02200_ K-01 Serf collects debris. 02204_ Acquired Lgt. Treads. 02207_ U-05 Engineer lays Concrete. 02211_ Y-45 Defender destroyed. 02215_ Slug penetrates Wall. 02222_ H-55 Commando calls for garrison reinforcements. 02222_ ALERT: Activating Garrison Access M001. 02224_ Slug penetrates Wall. 02236_ Wall collapses. 02236_ Slug penetrates Wall. 02240_ Material Compactor disabled. 02245_ Penetrated by Slug. 02245_ U-05 Engineer builds a Wall. 02246_ H-55 Commando destroyed. 02250_ C-30 ARC bursts open, deploying its payload. 02250_ G-50 Soldier unfolds itself. 02250_ G-47 Trooper unfolds itself. 02250_ U-05 Engineer builds a Wall. [Achievement: Collector] Map ----- +----------------------------------------------------+ | ?????????????????????????????????# #?# """ #??? | | ?????????????????????????????????# #?# #??? | | ???????????????????????????????###+### """ #??? | | ???????????????????????????????# # ""???#??? | | ???????????????????????????????# "" # "???????? | | ???????????????????????????????# """# ???????? | | ???????????????????????????????# S"#+###???????? | | ???????????????????????????????# #???????????? | | ????????????????????Y??????????# #???????????? | | ????????????????????????? ?????# """ #???????????? | | ????????????????????????? ?????# """ #???????????? | | ????????????????????????? ?????# """ #???????????? | | ????????????????????????? ?????# #???????????? | | ????????????????????????? ?????# #???????????? | | ??????????????????????###;##???# #?#?????????? | | ?????????????????###### % #######+### #?????????? | | ?????????????????+ % #?????????? | | ?????????????????# #?????????? | | ?????????????????# #######+## +?????????? | | ?????????????????# u## # #?????????? | | ?????????????????+ ## """%#? #?????????? | | ?????????????????# ## "G"!#?? ?????????? | | ?????????????????# """ ##s] "!"=#??? ????????? | | ???????????????## """ u +s %[=%[#????#???????? | | ?????????? g g """ ###s [**=!#????????????? | | ?????????? g @#?# ! #????????????? | | ?????????????#### #?# """ #????????????? | | ????????????????######## !#?# """ ##???????????? | | ???????????????????????#[%#?# """ #???????????? | | ??????????????????????? *[ ?# ##???????????? | | ??????????????????????+ ?#########????????????? | | ??????????????????????# ??????????????????????? | | ??????????????????????# ??????????????????????? | | ??????????????????????##+##??????????????????????? | | ?????????????????????????????????????????????????? | | ?????????????????????????????????????????????????? | | ?????????????????????????????????????????????????? | | ?????????????????????????????????????????????????? | | ?????????????????????????????????????????????????? | | ?????????????????????????????????????????????????? | | ?????????????????????????????????????????????????? | | | | | | | | | | | | | | | | | | | +----------------------------------------------------+ Best States ------------- Heat Dissipation 45 Energy Generation 14 Energy Capacity 240 Matter Stores 480 Matter Capacity 700 Sight Range 16 Terrain Scan Density 10 Power Shielding 33 Evasion (%) 40 Recoil Reduction 2 Item Schematics ----------------- Huge Storage Unit | -8/Materials | Scanalyzed Robot Schematics ------------------ None Fabricated ------------ Nothing Alien Tech Used ----------------- None Achievements -------------- Collector Challenges ------------ None Game ------ Seed DynamicBladeMicrothruster Manual? 0 Play Time 00:12:04 Cumulative 242.1 hours Start 2024.09.08 @ 23:53:07 End 2024.09.09 @ 09:48:38 Sessions 3 Manual Loads 0 Difficulty Rogue Special Mode None Game No. 206 Rogue 206 Adventurer 0 Explorer 0 Win Type - Total 1 Types 0/0/0/1/0/0/0/0/0 Lore% 66 Gallery% 75 Achievement% 55 Wizard Run 0 Options --------- Layout 2 ASCII 0 Keyboard 1 Movement Vi Keybinds 0 Fullscreen 1 Font 32/SmallcapsGlow Map View 77x44 Zoom Use 0% Tactical HUD 1 Map Filters NONE Filters NONE Steam 1 RUN: 0c4531fc-31c2-49e9-b1e3-a43c2c3b0a9c